{"text_format":"2","workbook":"xlsx","n_sheets":3,"sheets":["Instructions","Step 1 Planner","Step 2 Detailed Planner"],"not_rendered":{"charts":0,"images":1,"macros":0,"external_links":0,"defined_names":0,"comments":0,"pivot_tables":0},"unopened":[],"bounds":{"document_bytes":16777216,"sheet_cells":100000,"run_cost":"one","rows_first":2000,"rows_last":500,"rows_between":2000,"halvings":0,"cell_chars":16384,"cell_head_chars":4096},"cells_cut":0,"cells_raw":0,"read":"whole","date_system":"1900"}

{"sheet":"Instructions","index":0,"n_rows":3,"n_cols":2,"rows_kept":3,"cut":false,"hidden":false,"merged":[]}
[null,"Welcome to the Tour de Cure Fundraising Planner"]
["Step 1","Draft up your fundraising ideas on the first 'Step 1 Planner' tab"]
["Step 2","Start plotting into 'Step 2 Detailed Planner' booked events, donations and fundraising received so you can keep a detailed track of expenses and progress"]

{"sheet":"Step 1 Planner","index":1,"n_rows":18,"n_cols":8,"rows_kept":18,"cut":false,"hidden":false,"merged":[]}
["Type","Detail","Timeline","Effort Required","Cost Involved","$ you expect to Raise","Pros","Cons"]
["Example","Example","Example","Example","Example","Example","Example","Example"]
["Just Ask","email/FB/insta/LinkedIn","Weekly","30 mins",0,1200]
["Event","Bunnings BBQ","1 day","4 wks planning",500,1500,"Get funds without asking your own network","Need help and preparation"]
["Event","Stationary Bike ","1 day","4 wks planning",50,500,"Get training and fundraising done in one day"]
["Event","Movie Night","1 day","2mths planning",100,2200,"Not much prep","want to sell 200 tickets"]
["Sell Product/service","Sold unwanted furniture","1 day","week planning",0,300,"Spring clean and recycled unwanted stuff"]
["Sell Product/service","Bake Sale work","1 day","week planning",50,300,"people got something for their money","1 day baking"]
["Sell Product/service","Babysat","3 nights",0,0,270,"no effort just watched their TV!"]
["Raffle","at work","1 day","minimal/just ask",0,400,"raffled off unwanted gift"]
["Employer Matching",null,"once",0,0,700]
["Self Funding",null,"Once",0,100,100,"Self donated to get fundraising started"]
["Paid Personal Donation",null,"once",0,1000,1000]
["Donations in lieu of Birthday",null,"2mths","minimal/just ask",0,250]
["Community Partnerships",null,"2mths","5hrs preparation",0,5000,"Substantial fundraising in one go","Need a Plan B if doesn't come off"]
["Total Raised",{"$nulls":4},{"$f":"SUM(F3:F15)","v":13720}]
["Type","Detail","Timeline","Effort Required","Cost Involved","$ you expect to Raise","Pros","Cons"]
["Your ideas…....."]

{"sheet":"Step 2 Detailed Planner","index":2,"n_rows":52,"n_cols":7,"rows_kept":52,"cut":false,"hidden":false,"merged":[]}
["Fundraising Plan Tour de Cure "]
[]
["Fundraiser Name",null,"Type your name here",null,null,"Expected","Actual"]
[{"$nulls":4},"Totals",{"$f":"SUM(F9:F52)","v":6500},{"$f":"SUM(G9:G52)","v":7200}]
["Input in these cells only",null,null,null,"Achieved",null,{"$f":"+G4/F4","v":1.1076923076923078}]
[]
["Week","Date","Activity","Details","Comms Medium","Expected","Actual"]
[null,null,"Examples","Examples","Examples","Examples","Examples"]
[1,"2024-09-02","Static Trainer ride","Shopping centre ride","Facebook, Instagram",500,450]
[{"$f":"+A9+1","v":2},{"$f":"+B9+7","v":"2024-09-09"},"Direct Donation","Announcement message","Email, FB, Instagram",2000,2700]
[{"$f":"+A10+1","v":3},{"$f":"+B10+7","v":"2024-09-16"},"Barefoot Bowls","Event at local club - food, bowls, silent auctions","Local fliers, email, FB, Instagram",3000,2750]
[4,"2024-09-23","Direct Donation","Employer matching",null,1000,1300]
[5,"2024-09-30"]
[6,"2024-10-07"]
[7,"2024-10-14"]
[8,"2024-10-21"]
[9,"2024-10-28"]
[10,"2024-11-04"]
[11,"2024-11-11"]
[12,"2024-11-18"]
[13,"2024-11-25"]
[14,"2024-12-02"]
[15,"2024-12-09"]
[16,"2024-12-16"]
[17,"2024-12-23"]
[18,"2024-12-30"]
[19,"2025-01-06"]
[20,"2025-01-13"]
[21,"2025-01-20"]
[22,"2025-01-27"]
[23,"2025-02-03"]
[24,"2025-02-10"]
[25,"2025-02-17"]
[26,"2025-02-24"]
[27,"2025-03-03"]
[28,"2025-03-10"]
[29,"2025-03-17"]
[30,"2025-03-24"]
[31,"2025-03-31"]
[32,"2025-04-07"]
[33,"2025-04-14"]
[34,"2025-04-21"]
[35,"2025-04-28"]
[36,"2025-05-05"]
[37,"2025-05-12"]
[38,"2025-05-19"]
[39,"2025-05-26"]
[40,"2025-06-02"]
[41,"2025-06-09"]
[42,"2025-06-16"]
[43,"2025-06-23"]
[44,"2025-06-30"]